[Event "Marmaris Icmeler-IM May 2022"]
[Site "Icmeler"]
[Date "2022.05.07"]
[Round "5.5"]
[White "Nazari, Arad"]
[Black "Sevdimaliyev, Urfan"]
[Result "1-0"]
[ECO "B06"]
[WhiteElo "2287"]
[BlackElo "2331"]
[Annotator "TA"]
[PlyCount "77"]
[EventDate "2022.05.05"]
[EventType "schev"]
[EventCountry "TUR"]
[SourceTitle "playchess.com"]
[Source "ChessBase"]
[SourceQuality "1"]
[TimeControl "5400+30"]

{[%evp 9,77,41,48,55,47,35,49,17,24,18,40,29,28,23,16,-18,-25,-27,-5,-31,-26,-42,-7,-18,-7,-6,-15,-9,10,18,18,11,14,14,20,0,0,2,56,45,95,-29999,148,-29999,165,157,164,158,158,150,152,149,232,195,188,192,171,184,234,227,359,355,846,593,418,230,230,230,230,230]} 1. e4 {[%emt 0:33:00]} g6 {[%emt 0:22:00]} 2. d4 {[%emt 0:00:30]} Bg7 {[%emt 0:00:30]} 3. Nc3 {[%emt 0:00:30]} d5 {[%emt 0:00:30]} 4. exd5 {[%emt 0:00:30]} Nf6 {[%emt 0:00:30]} 5. Bc4 {[%emt 0:00:30]} Nbd7 {[%emt 0:00:30]} 6. Bb3 {[%emt 0:00:30] B06: Modern Defence.} Nb6 {[%emt 0:00:30]} 7. Qf3 {[%emt 0:00:30]} O-O {[%emt 0:00:30]} 8. Nge2 {[%emt 0:00:30] White is slightly better.} Bg4 {[%emt 0:00:30]} 9. Qg3 {[%emt 0:00:30] [#]} Bxe2 $146 {[%emt 0:00:30]} ({Predecessor:} 9... a5 10. a4 Bxe2 11. Nxe2 Nbxd5 12. O-O c6 13. Qf3 Qd7 14. Bd2 Qg4 15. Qxg4 Nxg4 {½-½ (59) Nemec,V (2176)-Brajdic,D (2121) Croatia 2017}) 10. Nxe2 {[%emt 0:00:30]} Nfxd5 {[%emt 0:00:30]} 11. O-O {[%emt 0:00:30]} a5 {[%emt 0:00:30][%cal Ba7a5,Ba5a4][%mdl 32]} 12. c3 {[%emt 0:00:30]} a4 {[%emt 0:00:30]} 13. Bc2 {[%emt 0:00:30]} Qd6 {[%emt 0:00:30]} 14. Nf4 {[%emt 0:00:30]} e5 {[%emt 0:00:30]} 15. Nxd5 {[%emt 0:00:30]} Qxd5 {[%emt 0:00:30]} 16. dxe5 {[%emt 0:00:30]} Bxe5 {[%emt 0:00:30]} 17. Bf4 {[%emt 0:00:30]} Bxf4 {[%emt 0:00:30]} 18. Qxf4 {[%emt 0:00:30]} Qd6 {[%emt 0:00:30]} 19. Qxd6 {[%emt 0:00:30]} cxd6 {[%emt 0:00:30]} 20. Rad1 {[%emt 0:00:30]} d5 {[%emt 0:00:30] Prevents Be4.} 21. Rd4 {[%emt 0:00:30]} a3 {[%emt 0:00:30]} 22. Rb4 {[%emt 0:00:30]} Nc4 {[%emt 0:00:30]} 23. b3 $36 {[%emt 0:00:30][%mdl 2048] White is pushing.} Na5 {[%emt 0:00:30]} ({Black should play} 23... Nb2 $11) 24. Rc1 {[%emt 0:00:30]} Rfe8 {[%emt 0:00:30]} (24... Rfc8 $14 25. Bd1 Rc7) 25. Bd1 $2 {[%emt 0:00:30][%mdl 8192] [#]} (25. Kf1 $16) 25... Re5 $2 {[%emt 0:00:30]} (25... Re1#) 26. Ra4 $2 {[%emt 0:00:30][%mdl 8192]} (26. Bf3 $16) 26... Ree8 $4 {[%emt 0:00:30][%mdl 8192]} (26... Re1# {mates}) 27. Bf3 $18 {[%emt 0:00:30]} Nc6 {[%emt 0:00:30]} 28. Rxa8 {[%emt 0:00:30]} ({Much less strong is} 28. Bxd5 $6 Rxa4 29. bxa4 Rd8 $14) 28... Rxa8 {[%emt 0:00:30]} 29. Bxd5 {[%emt 0:00:30][%mdl 4096] Endgame KRB-KRN} Rd8 {[%emt 0:00:30] [#]} 30. Rd1 {[%emt 0:00:30]} Rf8 {[%emt 0:00:30]} (30... Kf8 $16) 31. Bf3 {[%emt 0:00:30]} Rc8 {[%emt 0:00:30]} 32. Bxc6 {[%emt 0:00:30]} Rxc6 {[%emt 0:00:30] KR-KR} 33. c4 {[%emt 0:00:30]} Rc7 {[%emt 0:00:30]} (33... Kf8 $142 34. Kf1 Ke7) 34. Kf1 {[%emt 0:00:30]} b5 {[%emt 0:00:30]} (34... Kf8 {is a better defense.} 35. Rd8+ Ke7) 35. cxb5 {[%emt 0:00:30]} Rc5 $2 {[%emt 0:00:30]} (35... Rc8 36. Ke2 Kf8) 36. b6 {[%emt 0:00:30]} Rb5 {[%emt 0:00:30]} 37. Rd4 {[%emt 0:00:30]} (37. Rd8+ $142 Kg7 38. Rd6) 37... Rxb6 {[%emt 0:00:30]} 38. Ra4 {[%emt 0:00:30]} Rc6 {[%emt 0:00:30]} 39. g3 {[%emt 0:00:30] Weighted Error Value: White=0.69/Black=0.57} 1-0

[Event "Marmaris Icmeler-IM May 2022"]
[Site "Icmeler"]
[Date "2022.05.07"]
[Round "6.1"]
[White "Huseyinoglu, Alihan"]
[Black "Hereklioglu, Sude"]
[Result "1-0"]
[ECO "E74"]
[WhiteElo "2278"]
[BlackElo "1918"]
[Annotator "TA"]
[PlyCount "125"]
[EventDate "2022.05.05"]
[EventType "schev"]
[EventCountry "TUR"]
[SourceTitle "playchess.com"]
[Source "ChessBase"]
[SourceQuality "1"]
[TimeControl "5400+30"]

{[%evp 21,125,90,95,94,113,102,233,74,74,70,86,63,74,79,170,182,164,150,152,150,165,172,167,174,223,227,282,236,232,237,287,270,284,279,245,213,231,196,189,179,237,237,252,220,233,214,401,354,484,474,454,404,457,452,480,461,531,539,513,524,541,387,514,380,364,357,468,255,925,875,1877,1620,29976,29956,29977,29979,29976,29973,29973,29969,29967,29950,29961,497,29965,29968,29965,29968,29965,1484,29975,29976,29979,29980,29980,29978,29978,29979,29979,29980,29980,29981,29980,29981,29981,29977]} 1. d4 {[%emt 0:01:00]} Nf6 {[%emt 0:08:00]} 2. c4 {[%emt 0:00:00]} g6 {[%emt 0:00:30]} 3. Nc3 {[%emt 0:00:00]} Bg7 {[%emt 0:00:30]} 4. e4 {[%emt 0:00:30]} d6 {[%emt 0:00:30]} 5. Be2 {[%emt 0:00:30]} Nbd7 {[%emt 0:01:30]} 6. Bg5 {[%emt 0:01:30]} c5 {[%emt 0:04:30]} 7. d5 {[%emt 0:00:30]} O-O {[%emt 0:07:30]} 8. Qd2 {[%emt 0:00:30]} Qa5 {[%emt 0:00:30]} 9. Nf3 {[%emt 0:02:30]} a6 {[%emt 0:02:30]} 10. O-O {[%emt 0:01:30]} Rb8 {[%emt 0:00:30]} 11. a4 {[%emt 0:00:30][%cal Ba2a4,Ba4a5][%mdl 32]} Re8 {[%emt 0:05:30]} 12. h3 {[%emt 0:07:30] E74: King's Indian: Averbakh Variation: 6...c5.} Qb4 {[%emt 0:06:30]} 13. Qc2 {[%emt 0:05:30] Strongly threatening a5.} e6 {[%emt 0:11:30] [#]} (13... Qb6 $16) 14. Bd3 $2 {[%emt 0:05:30] [#]} (14. a5 $1 $18 {and the rest is easy.} b5 15. cxb5 axb5 16. a6) 14... Qb6 $146 {[%emt 0:06:30]} ({Predecessor:} 14... exd5 15. exd5 Ne5 16. Nxe5 dxe5 17. Bd2 Qb6 18. a5 Qd6 19. Rfe1 b6 20. axb6 Qxb6 {1-0 (60) Ovezova,M (2163)-Isaeva,G Ashkhabad 2000}) 15. a5 {[%emt 0:05:30]} Qc7 {[%emt 0:00:00]} 16. dxe6 {[%emt 0:00:30] White is more active.} fxe6 {[%emt 0:00:00]} 17. e5 {[%emt 0:05:30]} Nxe5 {[%emt 0:01:30]} (17... dxe5 $16 18. Rfd1 b6) 18. Nxe5 $18 {[%emt 0:00:30]} dxe5 {[%emt 0:00:00]} 19. Bxf6 {[%emt 0:01:30]} Bxf6 {[%emt 0:00:00] [#]} 20. Bxg6 $1 {[%emt 0:00:00][%mdl 512]} Rf8 {[%emt 0:01:30]} (20... Re7 21. Be4) 21. Be4 {[%emt 0:01:00]} Kh8 {[%emt 0:03:30]} 22. Ra3 {[%emt 0:03:30]} Rg8 {[%emt 0:02:30]} (22... b5 $142) 23. Rd1 {[%emt 0:03:30]} b6 {[%emt 0:02:30]} 24. axb6 {[%emt 0:02:30]} Rxb6 {[%emt 0:00:30]} 25. Na4 {[%emt 0:00:30]} Rb4 {[%emt 0:02:30]} 26. Rad3 {[%emt 0:01:30]} Rg7 {[%emt 0:02:30]} 27. b3 {[%emt 0:02:30]} Rb8 {[%emt 0:06:30]} 28. Qe2 {[%emt 0:05:30] Qf3 is the strong threat.} Bb7 {[%emt 0:01:30]} 29. Qf3 {[%emt 0:00:30]} Bxe4 {[%emt 0:00:30]} 30. Qxe4 {[%emt 0:00:30]} Rbg8 {[%emt 0:00:30]} (30... Rf8 $142 31. Rd6 Qf7 32. Rxa6 (32. Nxc5 Be7 $14) 32... Bg5) 31. g3 {[%emt 0:00:30]} Bg5 {[%emt 0:08:47]} 32. Rf3 {[%emt 0:04:30] Prevents Rf8.} Rg6 {[%emt 0:04:32]} 33. Kf1 {[%emt 0:01:30]} h5 $2 {[%emt 0:02:56]} (33... Bh6 34. Rfd3 R6g7) 34. Rfd3 {[%emt 0:04:30] Black must now prevent Rd7.} R8g7 {[%emt 0:01:37] Inhibits Rd7.} 35. h4 {[%emt 0:01:30]} Bf6 {[%emt 0:01:30]} 36. Qf3 {[%emt 0:08:30]} Kg8 {[%emt 0:00:50]} 37. Nc3 {[%emt 0:02:30]} e4 {[%emt 0:00:53]} 38. Nxe4 {[%emt 0:00:30]} Bd4 {[%emt 0:00:17]} 39. Rxd4 {[%emt 0:01:30]} cxd4 {[%emt 0:00:12]} 40. Rxd4 {[%emt 0:00:30]} Qe5 {[%emt 0:02:04]} 41. Rd8+ {[%emt 0:01:30]} Kh7 {[%emt 0:00:04]} 42. Ng5+ {[%emt 0:02:58]} Rxg5 {[%emt 0:00:09]} 43. hxg5 {[%emt 0:00:03] The board is on fire.} Qxg5 {[%emt 0:00:08][%mdl 4096] Endgame KQR-KQR} 44. Qe4+ {[%emt 0:02:53]} (44. Rf8 $142) 44... Rg6 $2 {[%emt 0:01:21]} (44... Qf5 45. Qxf5+ exf5) 45. Rd7+ {[%emt 0:01:44]} Kh6 {[%emt 0:00:10]} 46. Qb7 {[%emt 0:00:43][%csl Gb7][%cal Rd7h7]} Qf6 {[%emt 0:04:30]} 47. Rh7+ {[%emt 0:00:57]} Kg5 {[%emt 0:00:04]} 48. Qe4 {[%emt 0:01:22]} e5 {[%emt 0:00:57]} 49. Qh4+ {[%emt 0:01:20]} Kf5 {[%emt 0:00:06]} 50. Rxh5+ {[%emt 0:00:58]} Ke6 {[%emt 0:00:07]} 51. Qh3+ {[%emt 0:00:07]} Kd6 {[%emt 0:00:13]} 52. Qg2 {[%emt 0:02:11]} (52. Qc8 $142 Qg7 53. Rh8 Ke7 54. Re8+ Kd6 55. Rd8+ Ke7 56. c5 Kf6 57. Rf8+ Qf7 58. c6) 52... Qf7 {[%emt 0:00:37]} (52... Kc7 $18 53. Qd5 Rxg3 54. Rxe5 Rf3 55. Qc5+ Kd8 56. Qd4+ Kc7 57. Qa7+ Kd8) 53. Qe4 {[%emt 0:00:43]} Qe6 {[%emt 0:01:01] [#]} 54. Rxe5 $3 {[%emt 0:01:22][%mdl 512]} Qxe5 {[%emt 0:00:12]} 55. Qxg6+ {[%emt 0:00:04] KQ-KQ} Kc5 {[%emt 0:00:07]} 56. Qxa6 {[%emt 0:00:16] White mates.} Qc3 {[%emt 0:00:26]} 57. Qb5+ {[%emt 0:00:08]} Kd6 {[%emt 0:00:05]} 58. Qd5+ {[%emt 0:00:05]} Kc7 {[%emt 0:00:06]} 59. c5 {[%emt 0:00:07][%cal Bc4c5,Bc5c6][%mdl 32]} Qc1+ {[%emt 0:00:44]} 60. Kg2 {[%emt 0:00:06]} Qe1 {[%emt 0:00:17]} 61. c6 {[%emt 0:00:47]} Kb6 {[%emt 0:00:34]} 62. Qc4 {[%emt 0:00:34]} Kc7 {[%emt 0:00:15]} 63. b4 {[%emt 0:00:08] Weighted Error Value: White=0.30/Black=0.82} 1-0

[Event "Marmaris Icmeler-IM May 2022"]
[Site "Icmeler"]
[Date "2022.05.07"]
[Round "6.2"]
[White "Darban, Morteza"]
[Black "Ince, Taylan Ruzgar"]
[Result "1/2-1/2"]
[ECO "B40"]
[WhiteElo "2279"]
[BlackElo "2018"]
[Annotator "TA"]
[PlyCount "116"]
[EventDate "2022.05.05"]
[EventType "schev"]
[EventCountry "TUR"]
[SourceTitle "playchess.com"]
[Source "ChessBase"]
[SourceQuality "1"]
[TimeControl "5400+30"]

{[%evp 9,116,13,10,20,18,0,12,1,30,0,8,2,6,0,0,0,9,0,5,-17,8,8,23,3,64,58,69,60,106,96,98,97,104,61,58,44,96,84,140,135,134,138,140,63,225,243,208,185,192,206,209,85,96,84,95,77,108,102,110,80,132,135,119,122,118,121,115,80,83,0,56,-21,0,0,74,11,7,6,19,0,0,0,0,-70,-97,-89,-36,-30,-35,-72,0,0,0,0,0,0,0,0,0,0,0,0,0,0,0,0,0,0,0]} 1. e4 {[%emt 0:05:00]} c5 {[%emt 0:01:00]} 2. Nf3 {[%emt 0:00:30]} e6 {[%emt 0:00:00]} 3. g3 {[%emt 0:01:30]} Nc6 {[%emt 0:00:00]} 4. Bg2 {[%emt 0:00:00]} Nf6 {[%emt 0:00:00]} 5. Qe2 {[%emt 0:01:00]} e5 {[%emt 0:00:00]} 6. O-O {[%emt 0:00:30] B40: Sicilian: 2...e6, Unusual lines.} Be7 {[%emt 0:00:30]} 7. Nc3 {[%emt 0:06:30]} O-O {[%emt 0:02:30]} 8. d3 {[%emt 0:00:30] [#]} h6 $146 {[%emt 0:06:30]} ({Predecessor:} 8... d6 9. Bg5 Bg4 10. Bxf6 Bxf6 11. Nd5 Be7 12. c3 Qd7 13. a3 Bd8 14. Qc2 Ne7 {0-1 (28) Korchmar,V (2450)-Yoo,C (2532) Chess.com INT 2022}) 9. Ne1 {[%emt 0:03:30]} Nd4 {[%emt 0:10:30]} 10. Qd2 {[%emt 0:00:30]} b5 {[%emt 0:04:30]} 11. f4 {[%emt 0:00:30]} d6 {[%emt 0:01:30]} 12. Nd1 {[%emt 0:03:30]} Re8 {[%emt 0:03:30]} 13. Ne3 {[%emt 0:00:30]} Bb7 {[%emt 0:08:30][%cal Oc5c4]} 14. Qf2 {[%emt 0:03:30]} exf4 {[%emt 0:07:30]} 15. gxf4 {[%emt 0:00:30]} Bf8 {[%emt 0:00:30][%cal Oc5c4]} 16. Nf3 {[%emt 0:11:30]} Nxf3+ {[%emt 0:10:30]} (16... Ne6 $11) 17. Bxf3 $14 {[%emt 0:00:30]} Qd7 {[%emt 0:01:30]} 18. Qg2 {[%emt 0:05:30]} Kh7 {[%emt 0:07:30]} (18... Rab8 $14) 19. b3 {[%emt 0:10:30]} g6 {[%emt 0:04:30]} 20. Bb2 {[%emt 0:08:30]} Bg7 {[%emt 0:00:30][%cal Of6d5]} 21. Rab1 {[%emt 0:02:30]} Rg8 {[%emt 0:03:30]} 22. Kh1 {[%emt 0:01:30]} Rae8 {[%emt 0:04:30]} (22... Nh5 $14) 23. f5 $16 {[%emt 0:07:30]} Qd8 {[%emt 0:03:13]} (23... b4 $142) 24. Rg1 $36 {[%emt 0:06:30][%cal Rf5g6][%mdl 2048] Black is under strong pressure.} Bh8 {[%emt 0:04:34][%cal Od6d5]} 25. Qh3 {[%emt 0:01:41]} Bc8 {[%emt 0:01:06][%cal Od6d5]} 26. Rbf1 {[%emt 0:06:00] White is more active.} (26. c4 $16) 26... Ref8 $2 {[%emt 0:02:01]} (26... d5 $1 $14) 27. Bc1 $18 {[%emt 0:02:18]} Bg7 {[%emt 0:01:29]} 28. Be2 {[%emt 0:04:21]} (28. Bb2 Nh5 29. Bxg7 Nxg7) 28... Qe7 {[%emt 0:07:00]} 29. Rf4 {[%emt 0:00:58]} Rh8 {[%emt 0:00:43]} 30. Rh4 {[%emt 0:06:15]} ({But not} 30. Bb2 Qd8 31. Qh4 Bb7 $16) (30. Qg2 $18 {[%cal Rf5g6] is more deadly.} g5 31. h4) 30... Kg8 $16 {[%emt 0:00:08]} 31. Qg2 {[%emt 0:00:20]} g5 {[%emt 0:00:30]} 32. Rh3 {[%emt 0:00:14]} Rd8 {[%emt 0:01:05][%cal Od6d5]} 33. Rg3 {[%emt 0:01:06]} Kf8 {[%emt 0:00:43][%cal Od6d5]} 34. c4 {[%emt 0:00:47] Against d5} b4 {[%emt 0:00:43]} (34... bxc4 $142 35. bxc4 Bb7) 35. h4 {[%emt 0:00:29]} Bb7 {[%emt 0:00:53]} 36. Bf3 {[%emt 0:00:12]} Ke8 {[%emt 0:00:34]} 37. Rh3 {[%emt 0:00:51]} Kd7 {[%emt 0:00:16]} 38. Bb2 {[%emt 0:00:30] Hoping for e5.} Kc8 {[%emt 0:01:46] [#]} 39. Qd2 {[%emt 0:00:55]} ({Don't play} 39. hxg5 hxg5 40. Kh2 Rxh3+ 41. Kxh3 Rh8+ 42. Kg3 d5 43. cxd5 {[#]} Nxd5 $1 44. Bxg7 (44. Nxd5 Qd6+ 45. Kf2 Bxb2 $17) 44... Nxe3 $17) (39. Qf1 $1 $16) 39... Kb8 {[%emt 0:00:26]} (39... Rhg8 $11) 40. Kg2 {[%emt 0:00:24]} (40. Qe1 $14) 40... Rdg8 {[%emt 0:00:39][%cal Og5g4]} (40... Rhg8 $5 {[%cal Rg5g4]} 41. Kf1 Nd7 $11) 41. Kf1 {[%emt 0:00:12]} gxh4 {[%emt 0:01:11]} (41... Nd7 $11 {keeps the balance.}) 42. Qf2 {[%emt 0:00:52]} (42. Qh2 $16) 42... Ne8 $1 $11 {[%emt 0:01:29] [#]} 43. Rxg7 $1 {[%emt 0:00:23]} Rxg7 {[%emt 0:00:12]} (43... Nxg7 $2 44. f6 Qf8 45. fxg7 Rxg7 46. Rxh4 $18) 44. f6 {[%emt 0:00:26]} Nxf6 {[%emt 0:00:11]} 45. Nf5 {[%emt 0:00:01] Dancing on a razor blade.} Qe6 {[%emt 0:00:08] Threatens to win with ...Rg6.} 46. Qxh4 {[%emt 0:00:12]} ({White should try} 46. Qh2 $1 $11 Rg6 47. Nxd6) 46... Rg6 $15 {[%emt 0:00:05]} 47. Qf4 {[%emt 0:00:44][%csl LRd6,LRh6]} Rd8 {[%emt 0:00:21]} (47... Rhg8 $17 48. Rxh6 Rxh6 49. Qxh6 Ng4 50. Qxe6 Nh2+ 51. Ke2 fxe6 52. Nxd6 Nxf3 53. Kxf3 Kc7) 48. Rxh6 {[%emt 0:00:43]} Rxh6 {[%emt 0:00:10]} 49. Qxh6 {[%emt 0:00:05]} Nxe4 {[%emt 0:01:02]} 50. dxe4 $11 {[%emt 0:00:29] The position is equal.} Bxe4 {[%emt 0:00:15]} 51. Qxe6 {[%emt 0:00:50][%mdl 64] Remove Defender} fxe6 {[%emt 0:00:16]} 52. Bxe4 {[%emt 0:00:08][%cal Of5d6] Strongly threatening Nxd6!} exf5 {[%emt 0:00:03]} 53. Bd5 {[%emt 0:00:07]} Rd7 {[%emt 0:00:18]} 54. Bc1 {[%emt 0:01:10]} Rh7 {[%emt 0:00:26]} 55. Bf4 {[%emt 0:00:13]} Kc7 {[%emt 0:00:09]} 56. Kf2 {[%emt 0:01:26]} Rh4 {[%emt 0:00:23]} 57. Bg3 {[%emt 0:00:04] A strong pair of Bishops.} Rd4 {[%emt 0:00:21] And now ...Rd2+ would win.} 58. Ke2 {[%emt 0:00:09] Prevents Rd2+.} Rg4 {[%emt 0:00:08] Black defended with fortune.  Weighted Error Value: White=0.18 (very precise) /Black=0.21 (precise)} 1/2-1/2

[Event "Marmaris Icmeler-IM May 2022"]
[Site "Icmeler"]
[Date "2022.05.07"]
[Round "6.3"]
[White "Odeev, Handszar"]
[Black "Taspinar, Yanki"]
[Result "0-1"]
[ECO "C20"]
[WhiteElo "2305"]
[BlackElo "2176"]
[Annotator "TA"]
[PlyCount "60"]
[EventDate "2022.05.05"]
[EventType "schev"]
[EventCountry "TUR"]
[SourceTitle "playchess.com"]
[Source "ChessBase"]
[SourceQuality "1"]
[TimeControl "5400+30"]

{[%evp 9,60,-72,-47,-58,-45,-45,44,35,40,51,25,29,41,0,-19,-14,-22,-91,0,0,0,-2,-4,-1,-12,-30,-23,-227,-232,-241,-236,-233,-134,-232,-132,-131,-137,-132,-105,-688,-712,-708,-706,-721,-726,-705,-715,-705,-678,-753,-747,-922,-864]} 1. e4 {[%emt 0:11:00]} e5 {[%emt 0:01:00]} 2. Ne2 {[%emt 0:01:30]} Nc6 {[%emt 0:02:30]} 3. f4 {[%emt 0:00:30]} d5 {[%emt 0:11:30]} 4. exd5 {[%emt 0:00:30]} Qxd5 {[%emt 0:01:30]} 5. Nbc3 {[%emt 0:00:30] [#]} Qa5 $146 {[%emt 0:02:30] Black is much more active. The white rooks are badly placed.} ({Predecessor:} 5... Qd8 6. fxe5 Nxe5 7. d4 Ng6 8. Be3 Nf6 9. Qd3 Be7 10. O-O-O a6 11. Ng3 Nd5 12. Nxd5 Qxd5 {½-½ (42) Janz,F (2284)-Hepting,H (2209) Fuerth 1999}) 6. fxe5 {[%emt 0:02:30] C20: 1 e4 e5: Unusual White second moves.} Bg4 {[%emt 0:04:30]} ({Reject} 6... Qxe5 7. d4 Qa5 8. d5 $14) 7. h3 {[%emt 0:06:30]} Bh5 {[%emt 0:00:30]} (7... Bxe2 $15 8. Qxe2 O-O-O) 8. g4 $14 {[%emt 0:20:30] White is slightly better.} Be7 {[%emt 0:11:30] ( -> ...Bh4+)} 9. Bg2 $1 {[%emt 0:00:30]} Bh4+ {[%emt 0:02:30]} 10. Kf1 {[%emt 0:00:30]} Bg6 $1 {[%emt 0:02:30]} (10... Qxe5 $2 11. d4 Qf6+ 12. Bf4 $18) 11. d4 {[%emt 0:06:30]} ({White should play} 11. Bxc6+ $14 bxc6 12. d4) 11... O-O-O $11 {[%emt 0:02:30]} 12. Bf4 {[%emt 0:00:30]} Nge7 {[%emt 0:00:00][%mdl 1024] Black has compensation.} 13. a3 {[%emt 0:07:30] Prevents Qb4.} (13. Qd2 $11 {remains equal.}) 13... Qa6 {[%emt 0:27:00]} (13... Qb6 $17 {[%cal Rc6d4]} 14. Na4 Qb5) 14. Kg1 {[%emt 0:02:30]} f6 {[%emt 0:01:30] White must now prevent ...fxe5.} 15. e6 {[%emt 0:01:30]} h5 {[%emt 0:01:30]} 16. Qd2 {[%emt 0:08:30]} hxg4 {[%emt 0:13:05]} 17. hxg4 {[%emt 0:00:30] [#]} Ne5 $1 {[%emt 0:00:41]} 18. Qe3 $2 {[%emt 0:18:52]} (18. Bxe5 $11 fxe5 19. Rxh4 $1 Rxh4 20. Qg5 exd4 21. Qxh4 dxc3 22. Nxc3 Qxe6 23. Re1 Qb6+ 24. Qf2) (18. Rxh4 Rxh4) 18... Nxg4 $19 {[%emt 0:00:28]} 19. Qf3 {[%emt 0:00:27]} Bf2+ {[%emt 0:02:02]} 20. Kf1 {[%emt 0:00:01]} Rxh1+ {[%emt 0:00:14]} 21. Bxh1 {[%emt 0:00:01]} Bh5 {[%emt 0:01:03]} (21... Bf5 $19 {Hoping for ...g5.} 22. b4 {[#]} Be3 $1) 22. Qh3 $17 {[%emt 0:04:02]} g6 {[%emt 0:03:33] The board is on fire.} 23. d5 {[%emt 0:01:44]} Bc5 $36 {[%emt 0:06:50][%mdl 2048] aiming for ...Nf2. White is under strong pressure.} 24. Qg3 {[%emt 0:01:45][%mdl 8192]} (24. Bf3 $17 Ne5 25. Bxe5 fxe5 26. Bxh5 gxh5 27. Rd1) 24... Nf5 {[%emt 0:00:21][%cal Be7f5,Bf5e3,Be3c2,Bc2a1][%mdl 32] Black is clearly winning.} 25. Qd3 {[%emt 0:01:55]} Nge3+ {[%emt 0:00:14]} 26. Bxe3 {[%emt 0:02:07]} Nxe3+ {[%emt 0:00:04]} 27. Ke1 {[%emt 0:00:33]} Qxd3 {[%emt 0:00:05]} 28. cxd3 {[%emt 0:00:05]} Nc2+ {[%emt 0:00:02]} 29. Kd2 {[%emt 0:00:23]} Nxa1 {[%emt 0:00:03]} 30. Nc1 {[%emt 0:00:32]} Bd6 {[%emt 0:01:10] Weighted Error Value: White=0.76/Black=0.23 (precise)} 0-1

[Event "Marmaris Icmeler-IM May 2022"]
[Site "Icmeler"]
[Date "2022.05.07"]
[Round "6.4"]
[White "Sevdimaliyev, Urfan"]
[Black "Kilic, Eray"]
[Result "0-1"]
[ECO "B90"]
[WhiteElo "2331"]
[BlackElo "2192"]
[Annotator "TA"]
[PlyCount "50"]
[EventDate "2022.05.05"]
[EventType "schev"]
[EventCountry "TUR"]
[SourceTitle "playchess.com"]
[Source "ChessBase"]
[SourceQuality "1"]
[TimeControl "5400+30"]

{[%evp 9,50,16,17,0,-8,-30,-16,-34,-34,-33,-28,-108,-104,-103,-151,-144,-130,-116,-139,-140,-113,-127,-90,-254,-226,-291,-308,-304,-296,-428,-412,-459,-454,-420,-376,-29977,-29978,-29978,-29979,-29979,-29980,-5518,-5481]} 1. e4 {[%emt 0:01:00]} c5 {[%emt 0:01:00]} 2. Nf3 {[%emt 0:00:30][%cal Bg1f3,Bf3d4,Bd4f5][%mdl 32]} d6 {[%emt 0:00:00][%cal Bd7d6,Bd6d5,Bd5d4,Bd4c3][%mdl 32]} 3. d4 {[%emt 0:00:30]} cxd4 {[%emt 0:01:00]} 4. Nxd4 {[%emt 0:00:00]} Nf6 {[%emt 0:00:00]} 5. Nc3 {[%emt 0:00:00]} a6 {[%emt 0:00:00]} 6. Qe2 {[%emt 0:00:30] B90: Sicilian Najdorf: Unusual White 6th moves, 6 Be3 Ng4 and 6 Be3 e5.} e5 {[%emt 0:00:00]} 7. Nf5 {[%emt 0:00:00]} d5 {[%emt 0:00:00] next ...d4 is good for Black.} 8. Bg5 $1 {[%emt 0:00:00] The position is equal.} d4 $1 {[%emt 0:00:30]} 9. O-O-O {[%emt 0:01:30]} Nc6 {[%emt 0:04:30] Hoping for ...Qa5.} 10. f4 {[%emt 0:00:30]} (10. Qf3 $11) 10... Qa5 $1 $17 {[%emt 0:00:30]} (10... Bxf5 11. exf5 Qa5 12. fxe5 $1 $14) 11. fxe5 {[%emt 0:00:30]} dxc3 {[%emt 0:00:30]} 12. exf6 {[%emt 0:00:30]} Be6 $1 {[%emt 0:00:30]} ({Inferior is} 12... Qxa2 13. bxc3 gxf6 14. Bxf6 $15) (12... cxb2+ 13. Kb1 gxf6 14. Bxf6 $16) 13. Rd5 {[%emt 0:00:30]} (13. fxg7 {gets mated.} cxb2+ 14. Kxb2 Ba3+ 15. Kb1 Qb4+ 16. Ka1 Qb2#) 13... Qxa2 {[%emt 0:01:30][%cal Ra2a1]} 14. bxc3 {[%emt 0:00:30]} gxf6 $40 {[%emt 0:00:30][%mdl 128] Black wants a kill.} 15. Bxf6 {[%emt 0:00:30]} Rg8 {[%emt 0:01:30] [#] Threatens to win with ...Rg6.} 16. g4 $146 {[%emt 0:00:30]} (16. Kd2 $17) ({Predecessor:} 16. Kd2 Rg6 17. Bh4 f6 18. Nd6+ Kd7 19. Nc4+ Ke7 20. Qd3 b5 21. Ne3 Bh6 22. Ke2 Bxe3 23. Kxe3 {0-1 (51) Anikin,V-Sherwood,H ICCF email 2014}) 16... Rg6 $19 {[%emt 0:07:30]} 17. g5 {[%emt 0:07:30][%cal Oc1d2] [#]} Rxf6 $1 {[%emt 0:02:30][%mdl 512] Dancing on a razor blade.} 18. gxf6 {[%emt 0:00:30]} Bxf5 {[%emt 0:00:30]} 19. exf5+ {[%emt 0:00:00] [#]} (19. Qe3 {keeps fighting.} Be6 20. Rg1) 19... Ne7 $1 {[%emt 0:00:00][%mdl 512] ( -> ...Bh6+)} 20. Qe3 {[%emt 0:02:00] [#] Inhibits Bh6.} (20. Qc4 Bh6+) 20... Bh6 $1 {[%emt 0:00:00][%mdl 512]} 21. Qxh6 {[%emt 0:00:30]} Nxd5 {[%emt 0:00:30]} (21... Qa1+ $2 22. Kd2 Nxd5 {[#]} 23. Bb5+ $1 {[%mdl 512]} axb5 24. Rxa1 Rxa1 25. Qg7 Nxf6 26. Qxf6 $18) 22. Bg2 $2 {[%emt 0:02:30]} (22. Kd2 $19 Qa5 23. Bd3) 22... O-O-O {[%emt 0:00:30]} 23. Bxd5 {[%emt 0:01:30]} Qa1+ {[%emt 0:00:30][%mdl 64] Zwischenzug, Double Attack} 24. Kd2 {[%emt 0:00:00]} Rxd5+ {[%emt 0:00:30]} 25. Ke2 {[%emt 0:00:00]} Qxh1 {[%emt 0:00:00] White got outplayed after the opening.  Weighted Error Value: White=0.55/Black=0.00 (flawless)} 0-1